[Event "1st Bangalore GM-Open-A 2024"]
[Site "Bangalore"]
[Date "2024.01.24"]
[Round "8.4"]
[White "Neelash Saha"]
[Black "Chanda, Sandipan"]
[Result "1/2-1/2"]
[ECO "A84"]
[WhiteElo "2446"]
[BlackElo "2486"]
[Annotator "RC"]
[PlyCount "85"]
[EventDate "2024.01.20"]
[EventType "swiss"]
[EventCountry "IND"]
[SourceTitle "playchess.com"]
[Source "ChessBase"]
[SourceQuality "1"]
[TimeControl "5400+30"]

1. d4 {[%emt 0:00:07]} f5 {[%emt 0:00:11]} 2. c4 {[%emt 0:00:19]} Nf6 {[%emt 0:00:08]} 3. e3 {[%emt 0:00:14]} e6 {[%emt 0:02:08]} 4. Be2 {[%emt 0:00:16]} Be7 {[%emt 0:00:56]} 5. h4 {[%emt 0:05:23]} O-O {[%emt 0:01:13]} 6. h5 {[%emt 0:01:22]} Ne4 {[%emt 0:07:30]} 7. Nh3 {[%emt 0:00:46]} d6 {[%emt 0:02:58]} 8. Nd2 {[%emt 0:00:09]} d5 {[%emt 0:10:08]} 9. Qc2 {[%emt 0:03:01]} c5 {[%emt 0:05:15]} 10. cxd5 {[%emt 0:06:15]} cxd4 {[%emt 0:03:56]} 11. Nxe4 {[%emt 0:01:53]} fxe4 {[%emt 0:00:27]} 12. Qxe4 {[%emt 0:00:39]} exd5 {[%emt 0:00:37]} 13. Qxd4 {[%emt 0:00:28]} Nc6 {[%emt 0:00:37]} 14. Qd1 {[%emt 0:00:16]} Bb4+ {[%emt 0:10:21]} 15. Kf1 {[%emt 0:01:57]} Be6 {[%emt 0:03:40]} 16. Nf4 {[%emt 0:02:30]} Qf6 {[%emt 0:00:24]} 17. Bf3 {[%emt 0:01:45]} Rad8 {[%emt 0:02:18]} 18. Kg1 {[%emt 0:18:07]} Bf7 {[%emt 0:07:46]} 19. a3 {[%emt 0:06:30]} Be7 {[%emt 0:04:12]} 20. Qc2 {[%emt 0:00:50]} d4 {[%emt 0:02:42]} 21. Be4 {[%emt 0:00:27]} h6 {[%emt 0:00:09]} 22. Rh3 {[%emt 0:00:50]} Bd6 {[%emt 0:02:37]} 23. Ng6 {[%emt 0:13:47]} Rfe8 {[%emt 0:03:47]} 24. Bd2 {[%emt 0:05:37]} dxe3 {[%emt 0:02:26]} 25. fxe3 {[%emt 0:01:39]} Nd4 {[%emt 0:00:26]} 26. exd4 {[%emt 0:10:46]} Qxd4+ {[%emt 0:00:06]} 27. Re3 {[%emt 0:01:00]} Bxg6 {[%emt 0:00:58]} 28. Bxg6 {[%emt 0:00:05]} Rxe3 {[%emt 0:01:11]} 29. Bxe3 {[%emt 0:04:24]} Qxe3+ {[%emt 0:00:03]} 30. Qf2 {[%emt 0:03:08]} Bh2+ {[%emt 0:01:54]} 31. Kf1 {[%emt 0:00:04]} Qb3 {[%emt 0:02:22]} 32. g4 {[%emt 0:05:03]} Qh3+ {[%emt 0:02:21]} 33. Qg2 {[%emt 0:00:05]} Rf8+ {[%emt 0:01:30]} 34. Bf5 {[%emt 0:00:05]} Qd3+ {[%emt 0:03:47]} 35. Qe2 {[%emt 0:00:05]} Qg3 {[%emt 0:01:28]} 36. Qf2 {[%emt 0:00:13]} Qd6 {[%emt 0:00:19]} 37. Kg2 {[%emt 0:00:30]} Be5 {[%emt 0:00:08]} 38. Re1 {[%emt 0:02:15]} Qd5+ {[%emt 0:01:12]} 39. Qf3 {[%emt 0:01:27]} Qxf3+ {[%emt 0:01:18]} 40. Kxf3 {[%emt 0:00:04]} Bxb2 {[%emt 0:00:04]} 41. Rb1 {[%emt 0:00:46]} Bxa3 {[%emt 0:00:09]} 42. Rxb7 {[%emt 0:00:04]} Ra8 {[%emt 0:04:07]} 43. Rc7 {[%emt 0:00:47]} 1/2-1/2

[Event "1st Bangalore GM-Open-A 2024"]
[Site "Bangalore"]
[Date "2024.01.24"]
[Round "8.5"]
[White "Srihari L R"]
[Black "Nithin Babu"]
[Result "1/2-1/2"]
[ECO "E64"]
[WhiteElo "2469"]
[BlackElo "2177"]
[Annotator "RC"]
[PlyCount "61"]
[EventDate "2024.01.20"]
[EventType "swiss"]
[EventCountry "IND"]
[SourceTitle "playchess.com"]
[Source "ChessBase"]
[SourceQuality "1"]
[TimeControl "5400+30"]

1. c4 {[%emt 0:00:31]} Nf6 {[%emt 0:04:35]} 2. Nc3 {[%emt 0:01:33]} g6 {[%emt 0:00:06]} 3. d4 {[%emt 0:00:57]} Bg7 {[%emt 0:00:07]} 4. g3 {[%emt 0:00:05]} O-O {[%emt 0:00:50]} 5. Bg2 {[%emt 0:00:03]} d6 {[%emt 0:01:39]} 6. Nf3 {[%emt 0:00:11]} c5 {[%emt 0:00:09]} 7. d5 {[%emt 0:00:50]} e6 {[%emt 0:00:10]} 8. O-O {[%emt 0:00:12]} Re8 {[%emt 0:00:31]} 9. Bf4 {[%emt 0:03:40]} e5 {[%emt 0:00:36]} 10. Bg5 {[%emt 0:00:11]} h6 {[%emt 0:00:57]} 11. Bxf6 {[%emt 0:01:31]} Qxf6 {[%emt 0:00:25]} 12. e4 {[%emt 0:00:15]} Qe7 {[%emt 0:01:07]} 13. Qc2 {[%emt 0:03:10]} h5 {[%emt 0:05:18]} 14. Qd2 {[%emt 0:09:32]} Nd7 {[%emt 0:09:18]} 15. Bh3 {[%emt 0:09:24]} Bf6 {[%emt 0:05:23]} 16. Kg2 {[%emt 0:20:49]} Kg7 {[%emt 0:05:36]} 17. Nd1 {[%emt 0:01:40]} a6 {[%emt 0:10:04]} 18. a4 {[%emt 0:01:20]} Rb8 {[%emt 0:05:58]} 19. Ne3 {[%emt 0:11:04]} Kg8 {[%emt 0:04:06]} 20. Qe2 {[%emt 0:11:52]} Bg5 {[%emt 0:03:02]} 21. Nxg5 {[%emt 0:01:46]} Qxg5 {[%emt 0:01:24]} 22. Qf3 {[%emt 0:05:20]} Kg7 {[%emt 0:06:27]} 23. Ra3 {[%emt 0:02:13]} Qd8 {[%emt 0:02:13]} 24. Rfa1 {[%emt 0:04:49]} Nf6 {[%emt 0:08:55]} 25. Bxc8 {[%emt 0:01:15]} Qxc8 {[%emt 0:00:39]} 26. h4 {[%emt 0:00:28]} Re7 {[%emt 0:05:51]} 27. Rb3 {[%emt 0:02:14]} b6 {[%emt 0:01:45]} 28. Nd1 {[%emt 0:01:46]} Reb7 {[%emt 0:03:37]} 29. Qe2 {[%emt 0:01:41]} Qd7 {[%emt 0:01:03]} 30. Nc3 {[%emt 0:00:40]} Ne8 {[%emt 0:01:30]} 31. Rba3 {[%emt 0:03:07]} 1/2-1/2

[Event "1st Bangalore GM-Open-A 2024"]
[Site "Bangalore"]
[Date "2024.01.24"]
[Round "8.6"]
[White "Ghosh, Diptayan"]
[Black "Tahbaz, Arash"]
[Result "1-0"]
[ECO "B07"]
[WhiteElo "2568"]
[BlackElo "2425"]
[Annotator "RC"]
[PlyCount "76"]
[EventDate "2024.01.20"]
[EventType "swiss"]
[EventCountry "IND"]
[SourceTitle "playchess.com"]
[Source "ChessBase"]
[SourceQuality "1"]
[TimeControl "5400+30"]

1. Nf3 {[%emt 0:00:25]} Nf6 {[%emt 0:00:22]} 2. g3 {[%emt 0:00:07]} g6 {[%emt 0:00:36]} 3. Bg2 {[%emt 0:00:05]} Bg7 {[%emt 0:00:02]} 4. d4 {[%emt 0:00:11]} O-O {[%emt 0:00:06]} 5. O-O {[%emt 0:00:04]} d6 {[%emt 0:00:03]} 6. Re1 {[%emt 0:00:23]} Nbd7 {[%emt 0:00:13]} 7. e4 {[%emt 0:00:07]} e5 {[%emt 0:00:03]} 8. Nc3 {[%emt 0:00:07]} b6 {[%emt 0:00:16]} 9. a4 {[%emt 0:00:40]} a5 {[%emt 0:00:09]} 10. b3 {[%emt 0:00:12]} Bb7 {[%emt 0:00:37]} 11. dxe5 {[%emt 0:00:21]} dxe5 {[%emt 0:00:40]} 12. Nd2 {[%emt 0:00:06]} Re8 {[%emt 0:01:29]} 13. Nc4 {[%emt 0:00:32]} Qc8 {[%emt 0:28:07]} 14. Bh3 {[%emt 0:14:45]} Bc6 {[%emt 0:01:13]} 15. Ba3 {[%emt 0:04:48]} Bf8 {[%emt 0:04:14]} 16. Bxf8 {[%emt 0:01:51]} Kxf8 {[%emt 0:01:08]} 17. Qf3 {[%emt 0:01:50]} Kg7 {[%emt 0:02:06]} 18. Rad1 {[%emt 0:01:08]} Qb7 {[%emt 0:00:06]} 19. Nd5 {[%emt 0:05:31]} Bxd5 {[%emt 0:05:41]} 20. exd5 {[%emt 0:04:05]} Rad8 {[%emt 0:04:07]} 21. Bg2 {[%emt 0:02:04]} e4 {[%emt 0:18:07]} 22. Qc3 {[%emt 0:00:50]} Kg8 {[%emt 0:04:42]} 23. Qd4 {[%emt 0:16:46]} c5 {[%emt 0:01:40]} 24. Qa1 {[%emt 0:07:05]} Qb8 {[%emt 0:01:55]} 25. d6 {[%emt 0:00:25]} h5 {[%emt 0:00:11]} 26. h4 {[%emt 0:07:34]} Re6 {[%emt 0:03:53]} 27. Bh3 {[%emt 0:01:12]} Ng4 {[%emt 0:00:19]} 28. Bxg4 {[%emt 0:00:55]} hxg4 {[%emt 0:00:03]} 29. h5 {[%emt 0:00:53]} Nf6 {[%emt 0:06:19]} 30. hxg6 {[%emt 0:04:40]} fxg6 {[%emt 0:00:06]} 31. Qc1 {[%emt 0:00:14]} Kg7 {[%emt 0:00:38]} 32. Qg5 {[%emt 0:01:21]} Rf8 {[%emt 0:02:44]} 33. Ne3 {[%emt 0:05:14]} Rd8 {[%emt 0:01:42]} 34. Re2 {[%emt 0:07:38]} Kf7 {[%emt 0:00:15]} 35. Nc4 {[%emt 0:01:11]} Kg7 {[%emt 0:00:51]} 36. Red2 {[%emt 0:03:20]} e3 {[%emt 0:00:36]} 37. Nxe3 {[%emt 0:00:10]} Qb7 {[%emt 0:07:26]} 38. Ng2 {[%emt 0:07:20]} Ne4 {[%emt 0:01:18]} 1-0

[Event "1st Bangalore GM-Open-A 2024"]
[Site "Bangalore"]
[Date "2024.01.24"]
[Round "8.7"]
[White "Aronyak Ghosh"]
[Black "Omidi, Arya"]
[Result "1-0"]
[ECO "A20"]
[WhiteElo "2541"]
[BlackElo "2301"]
[Annotator "RC"]
[PlyCount "128"]
[EventDate "2024.01.20"]
[EventType "swiss"]
[EventCountry "IND"]
[SourceTitle "playchess.com"]
[Source "ChessBase"]
[SourceQuality "1"]
[TimeControl "5400+30"]

1. c4 {[%emt 0:00:03]} e5 {[%emt 0:00:14]} 2. g3 {[%emt 0:00:33]} c6 {[%emt 0:00:17]} 3. d4 {[%emt 0:10:47]} e4 {[%emt 0:00:12]} 4. Qa4 {[%emt 0:01:43]} Na6 {[%emt 0:24:09]} 5. a3 {[%emt 0:16:32]} f5 {[%emt 0:07:16]} 6. Nc3 {[%emt 0:01:22]} Nf6 {[%emt 0:00:41]} 7. Nh3 {[%emt 0:06:43]} Be7 {[%emt 0:01:41]} 8. Nf4 {[%emt 0:09:22]} O-O {[%emt 0:01:27]} 9. h4 {[%emt 0:01:06]} d6 {[%emt 0:06:10]} 10. e3 {[%emt 0:02:08]} Nc7 {[%emt 0:02:14]} 11. d5 {[%emt 0:01:17]} Ng4 {[%emt 0:01:32]} 12. Be2 {[%emt 0:01:52]} Ne5 {[%emt 0:01:24]} 13. Qc2 {[%emt 0:01:55]} c5 {[%emt 0:03:46]} 14. b3 {[%emt 0:05:10]} a6 {[%emt 0:03:18]} 15. Bb2 {[%emt 0:00:52]} b5 {[%emt 0:02:32]} 16. Rd1 {[%emt 0:03:31]} Rb8 {[%emt 0:01:58]} 17. Kf1 {[%emt 0:00:33]} g6 {[%emt 0:01:17]} 18. cxb5 {[%emt 0:14:06]} axb5 {[%emt 0:00:12]} 19. a4 {[%emt 0:00:06]} bxa4 {[%emt 0:06:20]} 20. bxa4 {[%emt 0:00:10]} Bf6 {[%emt 0:00:14]} 21. Nb5 {[%emt 0:01:00]} Nxb5 {[%emt 0:00:43]} 22. axb5 {[%emt 0:01:34]} Qe7 {[%emt 0:01:19]} 23. Bxe5 {[%emt 0:01:15]} Qxe5 {[%emt 0:01:51]} 24. Bc4 {[%emt 0:02:06]} Bd7 {[%emt 0:01:35]} 25. Rb1 {[%emt 0:02:55]} Rb6 {[%emt 0:02:19]} 26. Qa2 {[%emt 0:02:51]} Rfb8 {[%emt 0:00:36]} 27. Ne6 {[%emt 0:00:40]} R8b7 {[%emt 0:08:13]} 28. Kg2 {[%emt 0:00:49]} h6 {[%emt 0:00:18]} 29. Rhd1 {[%emt 0:02:49]} Qc3 {[%emt 0:01:08]} 30. Rdc1 {[%emt 0:02:03]} Qe5 {[%emt 0:00:04]} 31. Rd1 {[%emt 0:00:22]} Qc3 {[%emt 0:00:03]} 32. Rdc1 {[%emt 0:01:59]} Qe5 {[%emt 0:00:03]} 33. Qe2 {[%emt 0:00:18]} Bxe6 {[%emt 0:02:35]} 34. dxe6 {[%emt 0:00:05]} d5 {[%emt 0:00:04]} 35. Ba2 {[%emt 0:00:34]} Be7 {[%emt 0:00:37]} 36. Rd1 {[%emt 0:00:57]} c4 {[%emt 0:00:22]} 37. Qd2 {[%emt 0:00:12]} Rd6 {[%emt 0:02:13]} 38. Qa5 {[%emt 0:00:25]} Rbb6 {[%emt 0:01:56]} 39. Qa7 {[%emt 0:02:50]} Qxe6 {[%emt 0:00:40]} 40. Rxd5 {[%emt 0:00:10]} Qxd5 {[%emt 0:01:31]} 41. Qxe7 {[%emt 0:00:02]} Rb7 {[%emt 0:01:31]} 42. Qe8+ {[%emt 0:00:19]} Kg7 {[%emt 0:00:01]} 43. h5 {[%emt 0:01:12]} gxh5 {[%emt 0:01:43]} 44. Rc1 {[%emt 0:00:46]} Qxb5 {[%emt 0:00:46]} 45. Qc8 {[%emt 0:00:57]} Rc6 {[%emt 0:02:50]} 46. Qd8 {[%emt 0:00:06]} Qb6 {[%emt 0:00:17]} 47. Qe8 {[%emt 0:00:42]} Qc7 {[%emt 0:04:45]} 48. Rd1 {[%emt 0:00:01]} Rd6 {[%emt 0:00:01]} 49. Rc1 {[%emt 0:02:19]} Qf7 {[%emt 0:00:43]} 50. Qa4 {[%emt 0:00:32]} Ra7 {[%emt 0:04:10]} 51. Qb4 {[%emt 0:00:01]} Rc6 {[%emt 0:02:48]} 52. Bxc4 {[%emt 0:00:22]} Qf8 {[%emt 0:00:42]} 53. Qb2+ {[%emt 0:00:19]} Rf6 {[%emt 0:00:28]} 54. Be6 {[%emt 0:00:44]} Qa3 {[%emt 0:01:04]} 55. Rc7+ {[%emt 0:00:44]} Kg6 {[%emt 0:00:10]} 56. Bxf5+ {[%emt 0:00:28]} Kxf5 {[%emt 0:00:52]} 57. Qb5+ {[%emt 0:00:04]} Kg6 {[%emt 0:00:26]} 58. Qe8+ {[%emt 0:00:07]} Kf5 {[%emt 0:00:26]} 59. Qxh5+ {[%emt 0:02:19]} Ke6 {[%emt 0:00:01]} 60. Qe8+ {[%emt 0:00:05]} Kf5 {[%emt 0:01:08]} 61. Qd7+ {[%emt 0:00:09]} Kg5 {[%emt 0:00:20]} 62. Qg7+ {[%emt 0:00:24]} Kf5 {[%emt 0:00:35]} 63. Rxa7 {[%emt 0:00:09]} Qc5 {[%emt 0:00:38]} 64. Qh7+ {[%emt 0:00:16]} Rg6 {[%emt 0:00:30]} 1-0

[Event "1st Bangalore GM-Open-A 2024"]
[Site "Bangalore"]
[Date "2024.01.24"]
[Round "8.8"]
[White "Deepan Chakkravarthy J."]
[Black "Iniyan, Pa"]
[Result "0-1"]
[ECO "B90"]
[WhiteElo "2422"]
[BlackElo "2515"]
[Annotator "RC"]
[PlyCount "119"]
[EventDate "2024.01.20"]
[EventType "swiss"]
[EventCountry "IND"]
[SourceTitle "playchess.com"]
[Source "ChessBase"]
[SourceQuality "1"]
[TimeControl "5400+30"]

1. e4 {[%emt 0:00:21]} c5 {[%emt 0:00:16]} 2. Nf3 {[%emt 0:00:09]} d6 {[%emt 0:00:09]} 3. d4 {[%emt 0:00:16]} cxd4 {[%emt 0:00:09]} 4. Nxd4 {[%emt 0:00:04]} Nf6 {[%emt 0:00:12]} 5. Nc3 {[%emt 0:00:03]} a6 {[%emt 0:00:15]} 6. Nb3 {[%emt 0:00:32]} e6 {[%emt 0:00:54]} 7. g4 {[%emt 0:00:18]} b5 {[%emt 0:00:16]} 8. Bg2 {[%emt 0:00:12]} Bb7 {[%emt 0:00:14]} 9. g5 {[%emt 0:00:34]} Nfd7 {[%emt 0:00:27]} 10. f4 {[%emt 0:01:56]} Nc6 {[%emt 0:00:42]} 11. a3 {[%emt 0:07:08]} h6 {[%emt 0:01:56]} 12. h4 {[%emt 0:00:37]} hxg5 {[%emt 0:01:35]} 13. hxg5 {[%emt 0:00:50]} Rxh1+ {[%emt 0:00:24]} 14. Bxh1 {[%emt 0:00:02]} g6 {[%emt 0:16:38]} 15. Qe2 {[%emt 0:05:07]} Bg7 {[%emt 0:00:32]} 16. Be3 {[%emt 0:01:58]} Qc7 {[%emt 0:02:03]} 17. O-O-O {[%emt 0:02:20]} O-O-O {[%emt 0:20:10]} 18. Qf2 {[%emt 0:03:47]} Bxc3 {[%emt 0:23:37]} 19. bxc3 {[%emt 0:00:24]} Na5 {[%emt 0:00:02]} 20. Nxa5 {[%emt 0:01:24]} Qxa5 {[%emt 0:00:04]} 21. Kb2 {[%emt 0:00:06]} Qc7 {[%emt 0:00:06]} 22. Qh2 {[%emt 0:16:39]} Nc5 {[%emt 0:06:27]} 23. Bxc5 {[%emt 0:00:33]} Qxc5 {[%emt 0:00:11]} 24. Qh7 {[%emt 0:12:51]} Rd7 {[%emt 0:00:07]} 25. Qg8+ {[%emt 0:15:05]} Kc7 {[%emt 0:00:07]} 26. e5 {[%emt 0:00:08]} Bxh1 {[%emt 0:04:26]} 27. exd6+ {[%emt 0:03:19]} Kb6 {[%emt 0:00:08]} 28. Rxh1 {[%emt 0:00:11]} Qxd6 {[%emt 0:00:05]} 29. Qe8 {[%emt 0:02:33]} Re7 {[%emt 0:05:34]} 30. Qf8 {[%emt 0:03:13]} Rd7 {[%emt 0:00:05]} 31. Qe8 {[%emt 0:03:07]} Rb7 {[%emt 0:00:06]} 32. Rf1 {[%emt 0:03:38]} Qb8 {[%emt 0:00:05]} 33. Qxb8 {[%emt 0:00:04]} Rxb8 {[%emt 0:00:06]} 34. Rd1 {[%emt 0:00:24]} Kc6 {[%emt 0:01:04]} 35. Kb3 {[%emt 0:02:42]} a5 {[%emt 0:01:59]} 36. Rd4 {[%emt 0:01:30]} Rh8 {[%emt 0:00:32]} 37. a4 {[%emt 0:07:24]} Rb8 {[%emt 0:01:49]} 38. axb5+ {[%emt 0:01:03]} Rxb5+ {[%emt 0:00:07]} 39. Ka4 {[%emt 0:00:13]} Rc5 {[%emt 0:01:25]} 40. c4 {[%emt 0:01:22]} e5 {[%emt 0:01:21]} 41. fxe5 {[%emt 0:01:03]} Rxe5 {[%emt 0:00:11]} 42. Rg4 {[%emt 0:00:14]} Rf5 {[%emt 0:00:08]} 43. Rg2 {[%emt 0:00:18]} Kb6 {[%emt 0:01:12]} 44. Rg4 {[%emt 0:00:34]} Rf2 {[%emt 0:01:19]} 45. Kb3 {[%emt 0:00:11]} Kc5 {[%emt 0:00:33]} 46. Re4 {[%emt 0:00:15]} Rf3+ {[%emt 0:01:38]} 47. Ka4 {[%emt 0:03:58]} Rc3 {[%emt 0:00:37]} 48. Rf4 {[%emt 0:00:15]} Rxc2 {[%emt 0:01:37]} 49. Rxf7 {[%emt 0:00:03]} Kxc4 {[%emt 0:03:06]} 50. Rc7+ {[%emt 0:02:03]} Kd3 {[%emt 0:00:05]} 51. Rg7 {[%emt 0:00:15]} Rc6 {[%emt 0:00:16]} 52. Kxa5 {[%emt 0:02:14]} Rc5+ {[%emt 0:00:45]} 53. Kb6 {[%emt 0:00:06]} Rxg5 {[%emt 0:00:05]} 54. Kc6 {[%emt 0:00:02]} Ke4 {[%emt 0:01:15]} 55. Kd6 {[%emt 0:00:04]} Rd5+ {[%emt 0:00:18]} 56. Ke6 {[%emt 0:02:02]} g5 {[%emt 0:00:06]} 57. Ra7 {[%emt 0:00:42]} Rb5 {[%emt 0:00:35]} 58. Ra4+ {[%emt 0:00:23]} Kf3 {[%emt 0:00:05]} 59. Ra3+ {[%emt 0:00:06]} Kf4 {[%emt 0:00:05]} 60. Ra4+ {[%emt 0:00:58]} 0-1

[Event "1st Bangalore GM-Open-A 2024"]
[Site "Bangalore"]
[Date "2024.01.24"]
[Round "8.9"]
[White "Subhayan Kundu"]
[Black "Pranav Anand"]
[Result "0-1"]
[ECO "B90"]
[WhiteElo "2385"]
[BlackElo "2513"]
[Annotator "RC"]
[PlyCount "68"]
[EventDate "2024.01.20"]
[EventType "swiss"]
[EventCountry "IND"]
[SourceTitle "playchess.com"]
[Source "ChessBase"]
[SourceQuality "1"]
[TimeControl "5400+30"]

1. e4 {[%emt 0:07:13]} c5 {[%emt 0:00:12]} 2. Nf3 {[%emt 0:00:23]} d6 {[%emt 0:00:10]} 3. d4 {[%emt 0:00:17]} cxd4 {[%emt 0:00:04]} 4. Nxd4 {[%emt 0:00:04]} Nf6 {[%emt 0:00:05]} 5. Nc3 {[%emt 0:00:05]} a6 {[%emt 0:00:09]} 6. Be3 {[%emt 0:00:49]} e5 {[%emt 0:00:11]} 7. Nb3 {[%emt 0:00:32]} Be6 {[%emt 0:00:06]} 8. f3 {[%emt 0:01:08]} h5 {[%emt 0:00:10]} 9. Qd2 {[%emt 0:00:47]} Nbd7 {[%emt 0:00:35]} 10. Nd5 {[%emt 0:00:31]} Nxd5 {[%emt 0:00:07]} 11. exd5 {[%emt 0:00:08]} Bf5 {[%emt 0:00:02]} 12. Be2 {[%emt 0:04:29]} Rc8 {[%emt 0:00:18]} 13. Rc1 {[%emt 0:01:02]} Qh4+ {[%emt 0:00:13]} 14. g3 {[%emt 0:04:16]} Qf6 {[%emt 0:00:10]} 15. O-O {[%emt 0:04:23]} Be7 {[%emt 0:05:31]} 16. c4 {[%emt 0:06:33]} Qg6 {[%emt 0:03:20]} 17. Kh1 {[%emt 0:14:41]} e4 {[%emt 0:09:20]} 18. Nd4 {[%emt 0:08:55]} Bh3 {[%emt 0:02:28]} 19. Rf2 {[%emt 0:03:39]} Nf6 {[%emt 0:19:53]} 20. f4 {[%emt 0:10:35]} h4 {[%emt 0:01:31]} 21. f5 {[%emt 0:06:15]} Qh7 {[%emt 0:01:03]} 22. g4 {[%emt 0:04:15]} Bxg4 {[%emt 0:07:51]} 23. Rg1 {[%emt 0:04:39]} Bxe2 {[%emt 0:04:15]} 24. Qxe2 {[%emt 0:00:06]} Nh5 {[%emt 0:02:24]} 25. Bf4 {[%emt 0:04:31]} Kd7 {[%emt 0:11:25]} 26. b3 {[%emt 0:01:01]} Bf6 {[%emt 0:01:22]} 27. Qxe4 {[%emt 0:02:04]} Rce8 {[%emt 0:03:07]} 28. Qd3 {[%emt 0:00:55]} Ng3+ {[%emt 0:03:13]} 29. Bxg3 {[%emt 0:00:41]} hxg3 {[%emt 0:00:02]} 30. Rxg3 {[%emt 0:00:13]} Be5 {[%emt 0:04:02]} 31. Ne2 {[%emt 0:06:20]} Bxg3 {[%emt 0:00:29]} 32. Qxg3 {[%emt 0:00:02]} Qh5 {[%emt 0:02:38]} 33. Nf4 {[%emt 0:02:15]} Qxf5 {[%emt 0:03:35]} 34. c5 {[%emt 0:00:57]} dxc5 {[%emt 0:02:33]} 0-1

[Event "1st Bangalore GM-Open-A 2024"]
[Site "Bangalore"]
[Date "2024.01.24"]
[Round "8.10"]
[White "Dere Pushkar"]
[Black "Nitish Belurkar"]
[Result "1-0"]
[ECO "B38"]
[WhiteElo "2191"]
[BlackElo "2435"]
[Annotator "RC"]
[PlyCount "93"]
[EventDate "2024.01.20"]
[EventType "swiss"]
[EventCountry "IND"]
[SourceTitle "playchess.com"]
[Source "ChessBase"]
[SourceQuality "1"]
[TimeControl "5400+30"]

1. e4 {[%emt 0:01:08]} c5 {[%emt 0:00:06]} 2. Nf3 {[%emt 0:00:05]} d6 {[%emt 0:00:03]} 3. d4 {[%emt 0:00:07]} cxd4 {[%emt 0:00:09]} 4. Nxd4 {[%emt 0:00:06]} Nc6 {[%emt 0:00:04]} 5. c4 {[%emt 0:01:39]} g6 {[%emt 0:00:11]} 6. Nc3 {[%emt 0:01:59]} Bg7 {[%emt 0:00:06]} 7. Be3 {[%emt 0:01:00]} Nf6 {[%emt 0:00:06]} 8. Be2 {[%emt 0:02:00]} O-O {[%emt 0:01:18]} 9. O-O {[%emt 0:01:17]} Bd7 {[%emt 0:00:25]} 10. h3 {[%emt 0:04:46]} Nxd4 {[%emt 0:11:41]} 11. Bxd4 {[%emt 0:00:14]} a5 {[%emt 0:00:16]} 12. Nd5 {[%emt 0:03:03]} Nxd5 {[%emt 0:09:44]} 13. cxd5 {[%emt 0:01:48]} Rc8 {[%emt 0:17:59]} 14. Bxg7 {[%emt 0:01:50]} Kxg7 {[%emt 0:00:02]} 15. Qd4+ {[%emt 0:00:38]} Kg8 {[%emt 0:01:58]} 16. Rfc1 {[%emt 0:05:04]} b5 {[%emt 0:00:55]} 17. b4 {[%emt 0:09:46]} axb4 {[%emt 0:05:18]} 18. Qxb4 {[%emt 0:01:53]} Rxc1+ {[%emt 0:08:14]} 19. Rxc1 {[%emt 0:00:10]} Qa8 {[%emt 0:08:47]} 20. Rc7 {[%emt 0:20:32]} Rd8 {[%emt 0:00:09]} 21. a3 {[%emt 0:06:57]} Kf8 {[%emt 0:00:06]} 22. Qc3 {[%emt 0:05:29]} f6 {[%emt 0:00:06]} 23. Qc1 {[%emt 0:03:10]} Qb8 {[%emt 0:03:40]} 24. Bg4 {[%emt 0:05:51]} Bxg4 {[%emt 0:00:16]} 25. hxg4 {[%emt 0:00:09]} g5 {[%emt 0:01:28]} 26. e5 {[%emt 0:02:42]} fxe5 {[%emt 0:02:12]} 27. Qc2 {[%emt 0:03:20]} Qb6 {[%emt 0:09:50]} 28. Rc3 {[%emt 0:00:20]} Qd4 {[%emt 0:02:19]} 29. Rf3+ {[%emt 0:00:16]} Ke8 {[%emt 0:00:09]} 30. Qc6+ {[%emt 0:00:33]} Rd7 {[%emt 0:00:01]} 31. Qc8+ {[%emt 0:00:10]} Rd8 {[%emt 0:00:01]} 32. Qe6 {[%emt 0:01:10]} e4 {[%emt 0:02:07]} 33. Rf5 {[%emt 0:04:55]} Qa1+ {[%emt 0:00:30]} 34. Kh2 {[%emt 0:00:04]} Qg7 {[%emt 0:00:08]} 35. g3 {[%emt 0:01:09]} Ra8 {[%emt 0:02:50]} 36. Kg2 {[%emt 0:00:20]} h6 {[%emt 0:04:45]} 37. Qxe4 {[%emt 0:00:28]} Rc8 {[%emt 0:00:32]} 38. a4 {[%emt 0:02:55]} bxa4 {[%emt 0:00:23]} 39. Qxa4+ {[%emt 0:00:06]} Kd8 {[%emt 0:00:04]} 40. Qa5+ {[%emt 0:00:26]} Kd7 {[%emt 0:02:12]} 41. Qb5+ {[%emt 0:00:05]} Kd8 {[%emt 0:01:05]} 42. Rf3 {[%emt 0:00:18]} Qh8 {[%emt 0:02:43]} 43. Qb6+ {[%emt 0:01:48]} Kd7 {[%emt 0:02:15]} 44. Qb7+ {[%emt 0:00:17]} Kd8 {[%emt 0:00:01]} 45. Ra3 {[%emt 0:01:06]} Qd4 {[%emt 0:03:36]} 46. Ra7 {[%emt 0:00:10]} Qe4+ {[%emt 0:00:07]} 47. Kh2 {[%emt 0:00:05]} 1-0

[Event "1st Bangalore GM-Open-A 2024"]
[Site "Bangalore"]
[Date "2024.01.24"]
[Round "8.11"]
[White "Ilamparthi A R"]
[Black "Viani Antonio Dcunha"]
[Result "1-0"]
[ECO "C78"]
[WhiteElo "2426"]
[BlackElo "2407"]
[Annotator "RC"]
[PlyCount "77"]
[EventDate "2024.01.20"]
[EventType "swiss"]
[EventCountry "IND"]
[SourceTitle "playchess.com"]
[Source "ChessBase"]
[SourceQuality "1"]
[TimeControl "5400+30"]

1. e4 {[%emt 0:00:14]} e5 {[%emt 0:00:13]} 2. Nf3 {[%emt 0:00:46]} Nc6 {[%emt 0:00:09]} 3. Bb5 {[%emt 0:00:39]} a6 {[%emt 0:00:10]} 4. Ba4 {[%emt 0:00:04]} Nf6 {[%emt 0:00:10]} 5. O-O {[%emt 0:00:07]} Bc5 {[%emt 0:00:21]} 6. c3 {[%emt 0:00:59]} b5 {[%emt 0:00:11]} 7. Bb3 {[%emt 0:00:12]} d6 {[%emt 0:00:19]} 8. a4 {[%emt 0:01:48]} Bg4 {[%emt 0:00:38]} 9. h3 {[%emt 0:02:46]} Bh5 {[%emt 0:00:30]} 10. d3 {[%emt 0:01:33]} O-O {[%emt 0:03:05]} 11. Re1 {[%emt 0:03:40]} Rb8 {[%emt 0:05:49]} 12. Nbd2 {[%emt 0:05:52]} Re8 {[%emt 0:17:44]} 13. axb5 {[%emt 0:10:07]} axb5 {[%emt 0:00:13]} 14. Nf1 {[%emt 0:00:09]} d5 {[%emt 0:10:02]} 15. exd5 {[%emt 0:06:57]} Nxd5 {[%emt 0:13:16]} 16. Ng3 {[%emt 0:00:19]} Bg6 {[%emt 0:03:19]} 17. d4 {[%emt 0:01:14]} exd4 {[%emt 0:09:22]} 18. Rxe8+ {[%emt 0:02:59]} Qxe8 {[%emt 0:00:03]} 19. Bxd5 {[%emt 0:10:59]} dxc3 {[%emt 0:00:38]} 20. bxc3 {[%emt 0:00:15]} Rd8 {[%emt 0:07:15]} 21. Qb3 {[%emt 0:05:36]} Ne5 {[%emt 0:08:14]} 22. Bg5 {[%emt 0:06:38]} Rb8 {[%emt 0:00:35]} 23. Nd4 {[%emt 0:03:25]} b4 {[%emt 0:03:00]} 24. Be3 {[%emt 0:02:04]} Nd3 {[%emt 0:04:52]} 25. cxb4 {[%emt 0:06:04]} Nxb4 {[%emt 0:03:22]} 26. Qc4 {[%emt 0:00:24]} Nxd5 {[%emt 0:04:20]} 27. Qxd5 {[%emt 0:00:08]} Bf8 {[%emt 0:01:24]} 28. Nc6 {[%emt 0:00:49]} Rb1+ {[%emt 0:01:04]} 29. Rxb1 {[%emt 0:00:08]} Bxb1 {[%emt 0:00:02]} 30. Qb5 {[%emt 0:05:22]} Bg6 {[%emt 0:00:41]} 31. Bc5 {[%emt 0:00:26]} Bd3 {[%emt 0:01:41]} 32. Qb4 {[%emt 0:01:25]} Qxc6 {[%emt 0:02:34]} 33. Bxf8 {[%emt 0:00:06]} Qb5 {[%emt 0:01:04]} 34. Qd4 {[%emt 0:01:21]} Kxf8 {[%emt 0:00:27]} 35. Qd8+ {[%emt 0:00:04]} Qe8 {[%emt 0:00:03]} 36. Qxd3 {[%emt 0:00:07]} h6 {[%emt 0:00:09]} 37. Qd4 {[%emt 0:01:01]} Qc8 {[%emt 0:01:10]} 38. Nf5 {[%emt 0:00:48]} f6 {[%emt 0:00:16]} 39. Qc5+ {[%emt 0:00:04]} 1-0